{"text_format":"1","workbook":"xlsx","n_sheets":8,"sheets":["Anleitung","Ansprechpartner-Meldung","Einzel-Meldung","Mannschaft-Meldung","LineThrow-Meldung","KR-Meldung","Listen","Historie"],"not_rendered":{"charts":0,"images":1,"macros":1,"external_links":0,"defined_names":19,"comments":5,"pivot_tables":0},"unopened":[],"bounds":{"document_bytes":16777216,"sheet_cells":100000,"rows_first":2000,"rows_last":500,"rows_between":2000,"halvings":0,"cell_chars":16384,"cell_head_chars":4096},"cells_cut":0,"cells_raw":0,"read":"whole","date_system":"1900"}

{"sheet":"Anleitung","index":0,"n_rows":23,"n_cols":1,"rows_kept":23,"cut":false,"hidden":false,"merged":[]}
["Die Tabellen Einzel-Meldung / Mannschaft-Meldung sowie LineThrow dienen zur automatischen Erfassung der Meldung mit dem Wettkampfprogramm"]
[]
["Bitte die Struktur der Tabelle nicht verändern,\nda sonst die Daten nicht automatisch gelesen werden können !!!"]
[]
["Zunächst in Tabelle Ansprechpartner-Meldung\nIm Feld C2/D2 den Bezirk auswählen:\n1. Feld mit der Maus markieren\n2. Auf Dropdown-Button (Pfeil) klicken und Bezirk auswählen"]
[]
["Danach Meldung der Teilnehmer auf den beiden Blättern eingeben.\nDie Erstplazierten und weitere Plazierte können direkt nacheinander eingegeben werden."]
[]
[]
["Altersklasse und bei Einzelteilnehmern die Angabe \nMannschaft Ja / Nein können ebenfalls über Dropdown-Buttons ausgewählt werden. "]
[]
[]
["Für Einzelteilnehmer der offen Altersklasse bitte zusätzlich die Meldezeiten der einzelnen Disziplinen in den Spalten J bis O eingeben.\nOhne Angabe einer Zeit wird der Teilnehmer bei der Laufeinteilung nicht berücksichtigt.\nBitte beachtet: Es müssen 3 oder 4 Disziplinen ausgewählt werden. \nBei falscher Anzahl der ausgewählten Disziplinen erscheint die Spalte S in rot.\n\nFalls keine Meldezeit vorliegt, bitte <9:59,99> eingeben."]
[]
["Für alle Felder mit beschränkten Eingaben werden die zulässigen Werte\nals Hilfe angezeigt, sobald das Feld markiert wird.\nBei unzulässiger Eingabe erfolgt eine Fehlermeldung.\n\nBeispiel:\n\nGeschlecht\nW: Weiblich\nM: Männlich"]
[]
["Die fertige Meldung spätestens zum Meldeschluß am 8.5.2023 als Excel-Datei per email senden an: \n\nwm@wuerttemberg.dlrg-jugend.de\n\nSie besteht aus folgenden Unterlagen:\n  Excel-Datei Meldeunterlagen_2023.xls mit den Tabellen: \n•  Ansprechpartner-Meldung\n•  Einzel-Meldung \n•  Mannschaft-Meldung\n• KR-Meldung\nsowie\n• Protokoll der Bezirksmeisterschaften"]
["Das Protokoll bitten wir einzuscannen und im PDF Format der email beizufügen.\n \nUm das Datenvolumen gering zu halten und die Zuordnung der Unterlagen zu erleichtern, bitten wir alle Dateien gezippt der email beizufügen und folgende Namenskonventionen für die Datei einzuhalten:\n \n• WM2023_Bezirk_Datum_Meldung.zip (ZIP-Datei)\n• WM2023_Bezirk_Datum_Meldung.xls (Excel-Datei Meldebogen)\n• WM2023_Bezirk_Datum_Protokoll.pdf (Excel-Datei)\n \nBei Bezirk bitte das übliche Gliederungskürzel verwenden, \nz. B. „ZAK“. Datum im Format JJMMTT.\n \n Bsp.: WM2020_ZAK_202ß0502_Meldung.xls\n\n Das Versenden eines schriftlichen Kontrollauszugs mit der Post an das LJS entfällt.\n Meldungen in Papierform werden nicht berücksichtigt."]
[]
["Bei Problemen mit der Excel-Datei bitte rechtzeitig vor Meldeschluß email an:\n wm@wuerttemberg.dlrg-jugend.de"]
[]
["Die anderen Tabellen bitte entsprechend der Überschriften vollständig mit allen vorgegebenen Feldern ausfüllen.\n\nEinzelne Zellen sind mit roten Dreiecken markiert.\nWenn die Maus auf diese bewegt wird, wird ein Hinweis zum jeweiligen Feld eingeblendet.\n"]
["Falls die Hilfe nicht sichtbar ist, solltet Ihr die Excel-Einstellung wie folgt anpassen:\n\nIm Menü Extras: Optionen auswählen.\nLasche Ansicht auswählen.\nUnter Kommentare: Nur Indikatoren bzw. Kommentare und Indikatoren auswählen.\nDann wird die Hilfe unter den roten Dreiecken sichtbar."]

{"sheet":"Ansprechpartner-Meldung","index":1,"n_rows":22,"n_cols":11,"rows_kept":22,"cut":false,"hidden":false,"merged":[[18,0,18,5],[13,0,13,5],[1,2,1,3],[0,6,2,7],[4,0,4,10],[8,0,8,5],[8,7,8,9]]}
["Meldebogen Württembergische Meisterschaften",null,null,null,"2023"]
["Bezirk",null,"Esslingen",null,{"$f":"VLOOKUP(C2,Listen!A2:B23,2,0)","v":"ES"}]
[]
[]
["Die Rechnung für unseren Bezirk bitte an folgende Anschrift senden:\nBitte nur eine verantwortliche Person, die die Rechnungen im Bezirk weiter bearbeitet, benennen\n"]
["Bezirk","Vorname","Name","email","Handy","Telefon","Fax","Straße\nHausnummer","PLZ Ort","Zuständig für WM\nJ: Jugend\nBZ: Bezirk","Funktion Im Bezirk"]
[{"$f":"E2","v":"ES"}]
[]
["Ansprechpartner für Rückfragen während der Zulassungssitzung \n\nBei offenen Punkten während der Zulassung wird die Kommission den genannten Handy-Anschluß anrufen.",null,null,null,null,null,null,"Kontrollsummen"]
["Bezirk","Vorname","Name","email","Handy","Telefon",null,"Einzel","Mannschaft","Linethrow"]
[{"$f":"E2","v":"ES"},null,null,null,null,null,null,{"$f":"COUNTA('Einzel-Meldung'!E2:E200)","v":0},{"$f":"COUNTA('Mannschaft-Meldung'!D2:D100)","v":0},{"$f":"COUNTA('LineThrow-Meldung'!E2:E100)","v":0}]
[{"$f":"E2","v":"ES"}]
[]
["Hauptansprechpartner im Bezirk in WM-Angelegenheiten"]
["Bezirk","Vorname","Name","email","Handy","Telefon"]
[{"$f":"E2","v":"ES"}]
[{"$f":"E2","v":"ES"}]
[]
["Ansprechpartner im Bezirk für das Nachrückverfahren"]
["Bezirk","Vorname","Name","email","Handy","Telefon"]
[{"$f":"E2","v":"ES"}]
[{"$f":"E2","v":"ES"}]

{"sheet":"Einzel-Meldung","index":2,"n_rows":200,"n_cols":17,"rows_kept":200,"cut":false,"hidden":false,"merged":[]}
["Q-GLD","Geschlecht","Altersklasse","Vorname","Nachname","Jahrgang","Platz","Punkte","Gliederung","200 m Hindernisschwimmen","100 m Retten mit Flossen und Gurtretter","50 m Retten einer Puppe","100 m Kombinierte Rettungs-übung","100 m Retten einer Puppe mit Flossen","200 m Super Lifesaver","Kontrolle AK 17/18 AK Offen Anz Disz","Kontroll-vermerk / Zulassung"]
[{"$f":"IF(E2<>\"\",'Ansprechpartner-Meldung'!$E$2,\"\")","v":""},null,null,null,null,null,null,null,null,null,null,null,null,null,null,{"$f":"IF(OR(C2=\"AK Offen\",C2=\"AK 17/18\",C2=\"AK 15/16\"),COUNT(J2:O2),\"\")","v":""}]
[{"$f":"IF(E3<>\"\",'Ansprechpartner-Meldung'!$E$2,\"\")","v":""},null,null,null,null,null,null,null,null,null,null,null,null,null,null,{"$f":"IF(OR(C3=\"AK Offen\",C3=\"AK 17/18\",C3=\"AK 15/16\"),COUNT(J3:O3),\"\")","v":""}]
[{"$f":"IF(E4<>\"\",'Ansprechpartner-Meldung'!$E$2,\"\")","v":""},null,null,null,null,null,null,null,null,null,null,null,null,null,null,""]
[{"$f":"IF(E5<>\"\",'Ansprechpartner-Meldung'!$E$2,\"\")","v":""},null,null,null,null,null,null,null,null,null,null,null,null,null,null,""]
[{"$f":"IF(E6<>\"\",'Ansprechpartner-Meldung'!$E$2,\"\")","v":""},null,null,null,null,null,null,null,null,null,null,null,null,null,null,""]
[{"$f":"IF(E7<>\"\",'Ansprechpartner-Meldung'!$E$2,\"\")","v":""},null,null,null,null,null,null,null,null,null,null,null,null,null,null,""]
[{"$f":"IF(E8<>\"\",'Ansprechpartner-Meldung'!$E$2,\"\")","v":""},null,null,null,null,null,null,null,null,null,null,null,null,null,null,""]
[{"$f":"IF(E9<>\"\",'Ansprechpartner-Meldung'!$E$2,\"\")","v":""},null,null,null,null,null,null,null,null,null,null,null,null,null,null,""]
[{"$f":"IF(E10<>\"\",'Ansprechpartner-Meldung'!$E$2,\"\")","v":""},null,null,null,null,null,null,null,null,null,null,null,null,null,null,""]
[{"$f":"IF(E11<>\"\",'Ansprechpartner-Meldung'!$E$2,\"\")","v":""},null,null,null,null,null,null,null,null,null,null,null,null,null,null,""]
[{"$f":"IF(E12<>\"\",'Ansprechpartner-Meldung'!$E$2,\"\")","v":""},null,null,null,null,null,null,null,null,null,null,null,null,null,null,""]
[{"$f":"IF(E13<>\"\",'Ansprechpartner-Meldung'!$E$2,\"\")","v":""},null,null,null,null,null,null,null,null,null,null,null,null,null,null,""]
[{"$f":"IF(E14<>\"\",'Ansprechpartner-Meldung'!$E$2,\"\")","v":""},null,null,null,null,null,null,null,null,null,null,null,null,null,null,""]
[{"$f":"IF(E15<>\"\",'Ansprechpartner-Meldung'!$E$2,\"\")","v":""},null,null,null,null,null,null,null,null,null,null,null,null,null,null,""]
[{"$f":"IF(E16<>\"\",'Ansprechpartner-Meldung'!$E$2,\"\")","v":""},null,null,null,null,null,null,null,null,null,null,null,null,null,null,""]
[{"$f":"IF(E17<>\"\",'Ansprechpartner-Meldung'!$E$2,\"\")","v":""},null,null,null,null,null,null,null,null,null,null,null,null,null,null,""]
[{"$f":"IF(E18<>\"\",'Ansprechpartner-Meldung'!$E$2,\"\")","v":""},null,null,null,null,null,null,null,null,null,null,null,null,null,null,""]
[{"$f":"IF(E19<>\"\",'Ansprechpartner-Meldung'!$E$2,\"\")","v":""},null,null,null,null,null,null,null,null,null,null,null,null,null,null,""]
[{"$f":"IF(E20<>\"\",'Ansprechpartner-Meldung'!$E$2,\"\")","v":""},null,null,null,null,null,null,null,null,null,null,null,null,null,null,""]
[{"$f":"IF(E21<>\"\",'Ansprechpartner-Meldung'!$E$2,\"\")","v":""},null,null,null,null,null,null,null,null,null,null,null,null,null,null,""]
[{"$f":"IF(E22<>\"\",'Ansprechpartner-Meldung'!$E$2,\"\")","v":""},null,null,null,null,null,null,null,null,null,null,null,null,null,null,""]
[{"$f":"IF(E23<>\"\",'Ansprechpartner-Meldung'!$E$2,\"\")","v":""},null,null,null,null,null,null,null,null,null,null,null,null,null,null,""]
[{"$f":"IF(E24<>\"\",'Ansprechpartner-Meldung'!$E$2,\"\")","v":""},null,null,null,null,null,null,null,null,null,null,null,null,null,null,""]
[{"$f":"IF(E25<>\"\",'Ansprechpartner-Meldung'!$E$2,\"\")","v":""},null,null,null,null,null,null,null,null,null,null,null,null,null,null,""]
[{"$f":"IF(E26<>\"\",'Ansprechpartner-Meldung'!$E$2,\"\")","v":""},null,null,null,null,null,null,null,null,null,null,null,null,null,null,""]
[{"$f":"IF(E27<>\"\",'Ansprechpartner-Meldung'!$E$2,\"\")","v":""},null,null,null,null,null,null,null,null,null,null,null,null,null,null,""]
[{"$f":"IF(E28<>\"\",'Ansprechpartner-Meldung'!$E$2,\"\")","v":""},null,null,null,null,null,null,null,null,null,null,null,null,null,null,""]
[{"$f":"IF(E29<>\"\",'Ansprechpartner-Meldung'!$E$2,\"\")","v":""},null,null,null,null,null,null,null,null,null,null,null,null,null,null,""]
[{"$f":"IF(E30<>\"\",'Ansprechpartner-Meldung'!$E$2,\"\")","v":""},null,null,null,null,null,null,null,null,null,null,null,null,null,null,""]
[{"$f":"IF(E31<>\"\",'Ansprechpartner-Meldung'!$E$2,\"\")","v":""},null,null,null,null,null,null,null,null,null,null,null,null,null,null,""]
[{"$f":"IF(E32<>\"\",'Ansprechpartner-Meldung'!$E$2,\"\")","v":""},null,null,null,null,null,null,null,null,null,null,null,null,null,null,""]
[{"$f":"IF(E33<>\"\",'Ansprechpartner-Meldung'!$E$2,\"\")","v":""},null,null,null,null,null,null,null,null,null,null,null,null,null,null,""]
[{"$f":"IF(E34<>\"\",'Ansprechpartner-Meldung'!$E$2,\"\")","v":""},null,null,null,null,null,null,null,null,null,null,null,null,null,null,""]
[{"$f":"IF(E35<>\"\",'Ansprechpartner-Meldung'!$E$2,\"\")","v":""},null,null,null,null,null,null,null,null,null,null,null,null,null,null,""]
[{"$f":"IF(E36<>\"\",'Ansprechpartner-Meldung'!$E$2,\"\")","v":""},null,null,null,null,null,null,null,null,null,null,null,null,null,null,""]
[{"$f":"IF(E37<>\"\",'Ansprechpartner-Meldung'!$E$2,\"\")","v":""},null,null,null,null,null,null,null,null,null,null,null,null,null,null,""]
[{"$f":"IF(E38<>\"\",'Ansprechpartner-Meldung'!$E$2,\"\")","v":""},null,null,null,null,null,null,null,null,null,null,null,null,null,null,""]
[{"$f":"IF(E39<>\"\",'Ansprechpartner-Meldung'!$E$2,\"\")","v":""},null,null,null,null,null,null,null,null,null,null,null,null,null,null,""]
[{"$f":"IF(E40<>\"\",'Ansprechpartner-Meldung'!$E$2,\"\")","v":""},null,null,null,null,null,null,null,null,null,null,null,null,null,null,""]
[{"$f":"IF(E41<>\"\",'Ansprechpartner-Meldung'!$E$2,\"\")","v":""},null,null,null,null,null,null,null,null,null,null,null,null,null,null,""]
[{"$f":"IF(E42<>\"\",'Ansprechpartner-Meldung'!$E$2,\"\")","v":""},null,null,null,null,null,null,null,null,null,null,null,null,null,null,""]
[{"$f":"IF(E43<>\"\",'Ansprechpartner-Meldung'!$E$2,\"\")","v":""},null,null,null,null,null,null,null,null,null,null,null,null,null,null,""]
[{"$f":"IF(E44<>\"\",'Ansprechpartner-Meldung'!$E$2,\"\")","v":""},null,null,null,null,null,null,null,null,null,null,null,null,null,null,""]
[{"$f":"IF(E45<>\"\",'Ansprechpartner-Meldung'!$E$2,\"\")","v":""},null,null,null,null,null,null,null,null,null,null,null,null,null,null,""]
[{"$f":"IF(E46<>\"\",'Ansprechpartner-Meldung'!$E$2,\"\")","v":""},null,null,null,null,null,null,null,null,null,null,null,null,null,null,""]
[{"$f":"IF(E47<>\"\",'Ansprechpartner-Meldung'!$E$2,\"\")","v":""},null,null,null,null,null,null,null,null,null,null,null,null,null,null,""]
[{"$f":"IF(E48<>\"\",'Ansprechpartner-Meldung'!$E$2,\"\")","v":""},null,null,null,null,null,null,null,null,null,null,null,null,null,null,""]
[{"$f":"IF(E49<>\"\",'Ansprechpartner-Meldung'!$E$2,\"\")","v":""},null,null,null,null,null,null,null,null,null,null,null,null,null,null,""]
[{"$f":"IF(E50<>\"\",'Ansprechpartner-Meldung'!$E$2,\"\")","v":""},null,null,null,null,null,null,null,null,null,null,null,null,null,null,""]
[{"$f":"IF(E51<>\"\",'Ansprechpartner-Meldung'!$E$2,\"\")","v":""},null,null,null,null,null,null,null,null,null,null,null,null,null,null,""]
[{"$f":"IF(E52<>\"\",'Ansprechpartner-Meldung'!$E$2,\"\")","v":""},null,null,null,null,null,null,null,null,null,null,null,null,null,null,""]
[{"$f":"IF(E53<>\"\",'Ansprechpartner-Meldung'!$E$2,\"\")","v":""},null,null,null,null,null,null,null,null,null,null,null,null,null,null,""]
[{"$f":"IF(E54<>\"\",'Ansprechpartner-Meldung'!$E$2,\"\")","v":""},null,null,null,null,null,null,null,null,null,null,null,null,null,null,""]
[{"$f":"IF(E55<>\"\",'Ansprechpartner-Meldung'!$E$2,\"\")","v":""},null,null,null,null,null,null,null,null,null,null,null,null,null,null,""]
[{"$f":"IF(E56<>\"\",'Ansprechpartner-Meldung'!$E$2,\"\")","v":""},null,null,null,null,null,null,null,null,null,null,null,null,null,null,""]
[{"$f":"IF(E57<>\"\",'Ansprechpartner-Meldung'!$E$2,\"\")","v":""},null,null,null,null,null,null,null,null,null,null,null,null,null,null,""]
[{"$f":"IF(E58<>\"\",'Ansprechpartner-Meldung'!$E$2,\"\")","v":""},null,null,null,null,null,null,null,null,null,null,null,null,null,null,""]
[{"$f":"IF(E59<>\"\",'Ansprechpartner-Meldung'!$E$2,\"\")","v":""},null,null,null,null,null,null,null,null,null,null,null,null,null,null,""]
[{"$f":"IF(E60<>\"\",'Ansprechpartner-Meldung'!$E$2,\"\")","v":""},null,null,null,null,null,null,null,null,null,null,null,null,null,null,""]
[{"$f":"IF(E61<>\"\",'Ansprechpartner-Meldung'!$E$2,\"\")","v":""},null,null,null,null,null,null,null,null,null,null,null,null,null,null,""]
[{"$f":"IF(E62<>\"\",'Ansprechpartner-Meldung'!$E$2,\"\")","v":""},null,null,null,null,null,null,null,null,null,null,null,null,null,null,""]
[{"$f":"IF(E63<>\"\",'Ansprechpartner-Meldung'!$E$2,\"\")","v":""},null,null,null,null,null,null,null,null,null,null,null,null,null,null,""]
[{"$f":"IF(E64<>\"\",'Ansprechpartner-Meldung'!$E$2,\"\")","v":""},null,null,null,null,null,null,null,null,null,null,null,null,null,null,""]
[{"$f":"IF(E65<>\"\",'Ansprechpartner-Meldung'!$E$2,\"\")","v":""},null,null,null,null,null,null,null,null,null,null,null,null,null,null,""]
[{"$f":"IF(E66<>\"\",'Ansprechpartner-Meldung'!$E$2,\"\")","v":""},null,null,null,null,null,null,null,null,null,null,null,null,null,null,""]
[{"$f":"IF(E67<>\"\",'Ansprechpartner-Meldung'!$E$2,\"\")","v":""},null,null,null,null,null,null,null,null,null,null,null,null,null,null,{"$f":"IF(OR(C67=\"AK Offen\",C67=\"AK 17/18\",C67=\"AK 15/16\"),COUNT(J67:O67),\"\")","v":""}]
[{"$f":"IF(E68<>\"\",'Ansprechpartner-Meldung'!$E$2,\"\")","v":""},null,null,null,null,null,null,null,null,null,null,null,null,null,null,""]
[{"$f":"IF(E69<>\"\",'Ansprechpartner-Meldung'!$E$2,\"\")","v":""},null,null,null,null,null,null,null,null,null,null,null,null,null,null,""]
[{"$f":"IF(E70<>\"\",'Ansprechpartner-Meldung'!$E$2,\"\")","v":""},null,null,null,null,null,null,null,null,null,null,null,null,null,null,""]
[{"$f":"IF(E71<>\"\",'Ansprechpartner-Meldung'!$E$2,\"\")","v":""},null,null,null,null,null,null,null,null,null,null,null,null,null,null,""]
[{"$f":"IF(E72<>\"\",'Ansprechpartner-Meldung'!$E$2,\"\")","v":""},null,null,null,null,null,null,null,null,null,null,null,null,null,null,""]
[{"$f":"IF(E73<>\"\",'Ansprechpartner-Meldung'!$E$2,\"\")","v":""},null,null,null,null,null,null,null,null,null,null,null,null,null,null,""]
[{"$f":"IF(E74<>\"\",'Ansprechpartner-Meldung'!$E$2,\"\")","v":""},null,null,null,null,null,null,null,null,null,null,null,null,null,null,""]
[{"$f":"IF(E75<>\"\",'Ansprechpartner-Meldung'!$E$2,\"\")","v":""},null,null,null,null,null,null,null,null,null,null,null,null,null,null,""]
[{"$f":"IF(E76<>\"\",'Ansprechpartner-Meldung'!$E$2,\"\")","v":""},null,null,null,null,null,null,null,null,null,null,null,null,null,null,""]
[{"$f":"IF(E77<>\"\",'Ansprechpartner-Meldung'!$E$2,\"\")","v":""},null,null,null,null,null,null,null,null,null,null,null,null,null,null,""]
[{"$f":"IF(E78<>\"\",'Ansprechpartner-Meldung'!$E$2,\"\")","v":""},null,null,null,null,null,null,null,null,null,null,null,null,null,null,""]
[{"$f":"IF(E79<>\"\",'Ansprechpartner-Meldung'!$E$2,\"\")","v":""},null,null,null,null,null,null,null,null,null,null,null,null,null,null,""]
[{"$f":"IF(E80<>\"\",'Ansprechpartner-Meldung'!$E$2,\"\")","v":""},null,null,null,null,null,null,null,null,null,null,null,null,null,null,""]
[{"$f":"IF(E81<>\"\",'Ansprechpartner-Meldung'!$E$2,\"\")","v":""},null,null,null,null,null,null,null,null,null,null,null,null,null,null,""]
[{"$f":"IF(E82<>\"\",'Ansprechpartner-Meldung'!$E$2,\"\")","v":""},null,null,null,null,null,null,null,null,null,null,null,null,null,null,""]
[{"$f":"IF(E83<>\"\",'Ansprechpartner-Meldung'!$E$2,\"\")","v":""},null,null,null,null,null,null,null,null,null,null,null,null,null,null,""]
[{"$f":"IF(E84<>\"\",'Ansprechpartner-Meldung'!$E$2,\"\")","v":""},null,null,null,null,null,null,null,null,null,null,null,null,null,null,""]
[{"$f":"IF(E85<>\"\",'Ansprechpartner-Meldung'!$E$2,\"\")","v":""},null,null,null,null,null,null,null,null,null,null,null,null,null,null,""]
[{"$f":"IF(E86<>\"\",'Ansprechpartner-Meldung'!$E$2,\"\")","v":""},null,null,null,null,null,null,null,null,null,null,null,null,null,null,""]
[{"$f":"IF(E87<>\"\",'Ansprechpartner-Meldung'!$E$2,\"\")","v":""},null,null,null,null,null,null,null,null,null,null,null,null,null,null,""]
[{"$f":"IF(E88<>\"\",'Ansprechpartner-Meldung'!$E$2,\"\")","v":""},null,null,null,null,null,null,null,null,null,null,null,null,null,null,""]
[{"$f":"IF(E89<>\"\",'Ansprechpartner-Meldung'!$E$2,\"\")","v":""},null,null,null,null,null,null,null,null,null,null,null,null,null,null,""]
[{"$f":"IF(E90<>\"\",'Ansprechpartner-Meldung'!$E$2,\"\")","v":""},null,null,null,null,null,null,null,null,null,null,null,null,null,null,""]
[{"$f":"IF(E91<>\"\",'Ansprechpartner-Meldung'!$E$2,\"\")","v":""},null,null,null,null,null,null,null,null,null,null,null,null,null,null,""]
[{"$f":"IF(E92<>\"\",'Ansprechpartner-Meldung'!$E$2,\"\")","v":""},null,null,null,null,null,null,null,null,null,null,null,null,null,null,""]
[{"$f":"IF(E93<>\"\",'Ansprechpartner-Meldung'!$E$2,\"\")","v":""},null,null,null,null,null,null,null,null,null,null,null,null,null,null,""]
[{"$f":"IF(E94<>\"\",'Ansprechpartner-Meldung'!$E$2,\"\")","v":""},null,null,null,null,null,null,null,null,null,null,null,null,null,null,""]
[{"$f":"IF(E95<>\"\",'Ansprechpartner-Meldung'!$E$2,\"\")","v":""},null,null,null,null,null,null,null,null,null,null,null,null,null,null,""]
[{"$f":"IF(E96<>\"\",'Ansprechpartner-Meldung'!$E$2,\"\")","v":""},null,null,null,null,null,null,null,null,null,null,null,null,null,null,""]
[{"$f":"IF(E97<>\"\",'Ansprechpartner-Meldung'!$E$2,\"\")","v":""},null,null,null,null,null,null,null,null,null,null,null,null,null,null,""]
[{"$f":"IF(E98<>\"\",'Ansprechpartner-Meldung'!$E$2,\"\")","v":""},null,null,null,null,null,null,null,null,null,null,null,null,null,null,""]
[{"$f":"IF(E99<>\"\",'Ansprechpartner-Meldung'!$E$2,\"\")","v":""},null,null,null,null,null,null,null,null,null,null,null,null,null,null,""]
[{"$f":"IF(E100<>\"\",'Ansprechpartner-Meldung'!$E$2,\"\")","v":""},null,null,null,null,null,null,null,null,null,null,null,null,null,null,""]
[{"$f":"IF(E101<>\"\",'Ansprechpartner-Meldung'!$E$2,\"\")","v":""},null,null,null,null,null,null,null,null,null,null,null,null,null,null,""]
[{"$f":"IF(E102<>\"\",'Ansprechpartner-Meldung'!$E$2,\"\")","v":""},null,null,null,null,null,null,null,null,null,null,null,null,null,null,""]
[{"$f":"IF(E103<>\"\",'Ansprechpartner-Meldung'!$E$2,\"\")","v":""},null,null,null,null,null,null,null,null,null,null,null,null,null,null,""]
[{"$f":"IF(E104<>\"\",'Ansprechpartner-Meldung'!$E$2,\"\")","v":""},null,null,null,null,null,null,null,null,null,null,null,null,null,null,""]
[{"$f":"IF(E105<>\"\",'Ansprechpartner-Meldung'!$E$2,\"\")","v":""},null,null,null,null,null,null,null,null,null,null,null,null,null,null,""]
[{"$f":"IF(E106<>\"\",'Ansprechpartner-Meldung'!$E$2,\"\")","v":""},null,null,null,null,null,null,null,null,null,null,null,null,null,null,""]
[{"$f":"IF(E107<>\"\",'Ansprechpartner-Meldung'!$E$2,\"\")","v":""},null,null,null,null,null,null,null,null,null,null,null,null,null,null,""]
[{"$f":"IF(E108<>\"\",'Ansprechpartner-Meldung'!$E$2,\"\")","v":""},null,null,null,null,null,null,null,null,null,null,null,null,null,null,""]
[{"$f":"IF(E109<>\"\",'Ansprechpartner-Meldung'!$E$2,\"\")","v":""},null,null,null,null,null,null,null,null,null,null,null,null,null,null,""]
[{"$f":"IF(E110<>\"\",'Ansprechpartner-Meldung'!$E$2,\"\")","v":""},null,null,null,null,null,null,null,null,null,null,null,null,null,null,""]
[{"$f":"IF(E111<>\"\",'Ansprechpartner-Meldung'!$E$2,\"\")","v":""},null,null,null,null,null,null,null,null,null,null,null,null,null,null,""]
[{"$f":"IF(E112<>\"\",'Ansprechpartner-Meldung'!$E$2,\"\")","v":""},null,null,null,null,null,null,null,null,null,null,null,null,null,null,""]
[{"$f":"IF(E113<>\"\",'Ansprechpartner-Meldung'!$E$2,\"\")","v":""},null,null,null,null,null,null,null,null,null,null,null,null,null,null,""]
[{"$f":"IF(E114<>\"\",'Ansprechpartner-Meldung'!$E$2,\"\")","v":""},null,null,null,null,null,null,null,null,null,null,null,null,null,null,""]
[{"$f":"IF(E115<>\"\",'Ansprechpartner-Meldung'!$E$2,\"\")","v":""},null,null,null,null,null,null,null,null,null,null,null,null,null,null,""]
[{"$f":"IF(E116<>\"\",'Ansprechpartner-Meldung'!$E$2,\"\")","v":""},null,null,null,null,null,null,null,null,null,null,null,null,null,null,""]
[{"$f":"IF(E117<>\"\",'Ansprechpartner-Meldung'!$E$2,\"\")","v":""},null,null,null,null,null,null,null,null,null,null,null,null,null,null,""]
[{"$f":"IF(E118<>\"\",'Ansprechpartner-Meldung'!$E$2,\"\")","v":""},null,null,null,null,null,null,null,null,null,null,null,null,null,null,""]
[{"$f":"IF(E119<>\"\",'Ansprechpartner-Meldung'!$E$2,\"\")","v":""},null,null,null,null,null,null,null,null,null,null,null,null,null,null,""]
[{"$f":"IF(E120<>\"\",'Ansprechpartner-Meldung'!$E$2,\"\")","v":""},null,null,null,null,null,null,null,null,null,null,null,null,null,null,""]
[{"$f":"IF(E121<>\"\",'Ansprechpartner-Meldung'!$E$2,\"\")","v":""},null,null,null,null,null,null,null,null,null,null,null,null,null,null,""]
[{"$f":"IF(E122<>\"\",'Ansprechpartner-Meldung'!$E$2,\"\")","v":""},null,null,null,null,null,null,null,null,null,null,null,null,null,null,""]
[{"$f":"IF(E123<>\"\",'Ansprechpartner-Meldung'!$E$2,\"\")","v":""},null,null,null,null,null,null,null,null,null,null,null,null,null,null,""]
[{"$f":"IF(E124<>\"\",'Ansprechpartner-Meldung'!$E$2,\"\")","v":""},null,null,null,null,null,null,null,null,null,null,null,null,null,null,{"$f":"IF(OR(C124=\"AK Offen\",C124=\"AK 17/18\",C124=\"AK 15/16\"),COUNT(J124:O124),\"\")","v":""}]
[{"$f":"IF(E125<>\"\",'Ansprechpartner-Meldung'!$E$2,\"\")","v":""},null,null,null,null,null,null,null,null,null,null,null,null,null,null,{"$f":"IF(OR(C125=\"AK Offen\",C125=\"AK 17/18\",C125=\"AK 15/16\"),COUNT(J125:O125),\"\")","v":""}]
[{"$f":"IF(E126<>\"\",'Ansprechpartner-Meldung'!$E$2,\"\")","v":""},null,null,null,null,null,null,null,null,null,null,null,null,null,null,""]
[{"$f":"IF(E127<>\"\",'Ansprechpartner-Meldung'!$E$2,\"\")","v":""},null,null,null,null,null,null,null,null,null,null,null,null,null,null,""]
[{"$f":"IF(E128<>\"\",'Ansprechpartner-Meldung'!$E$2,\"\")","v":""},null,null,null,null,null,null,null,null,null,null,null,null,null,null,""]
[{"$f":"IF(E129<>\"\",'Ansprechpartner-Meldung'!$E$2,\"\")","v":""},null,null,null,null,null,null,null,null,null,null,null,null,null,null,""]
[{"$f":"IF(E130<>\"\",'Ansprechpartner-Meldung'!$E$2,\"\")","v":""},null,null,null,null,null,null,null,null,null,null,null,null,null,null,""]
[{"$f":"IF(E131<>\"\",'Ansprechpartner-Meldung'!$E$2,\"\")","v":""},null,null,null,null,null,null,null,null,null,null,null,null,null,null,""]
[{"$f":"IF(E132<>\"\",'Ansprechpartner-Meldung'!$E$2,\"\")","v":""},null,null,null,null,null,null,null,null,null,null,null,null,null,null,""]
[{"$f":"IF(E133<>\"\",'Ansprechpartner-Meldung'!$E$2,\"\")","v":""},null,null,null,null,null,null,null,null,null,null,null,null,null,null,""]
[{"$f":"IF(E134<>\"\",'Ansprechpartner-Meldung'!$E$2,\"\")","v":""},null,null,null,null,null,null,null,null,null,null,null,null,null,null,""]
[{"$f":"IF(E135<>\"\",'Ansprechpartner-Meldung'!$E$2,\"\")","v":""},null,null,null,null,null,null,null,null,null,null,null,null,null,null,""]
[{"$f":"IF(E136<>\"\",'Ansprechpartner-Meldung'!$E$2,\"\")","v":""},null,null,null,null,null,null,null,null,null,null,null,null,null,null,""]
[{"$f":"IF(E137<>\"\",'Ansprechpartner-Meldung'!$E$2,\"\")","v":""},null,null,null,null,null,null,null,null,null,null,null,null,null,null,""]
[{"$f":"IF(E138<>\"\",'Ansprechpartner-Meldung'!$E$2,\"\")","v":""},null,null,null,null,null,null,null,null,null,null,null,null,null,null,""]
[{"$f":"IF(E139<>\"\",'Ansprechpartner-Meldung'!$E$2,\"\")","v":""},null,null,null,null,null,null,null,null,null,null,null,null,null,null,""]
[{"$f":"IF(E140<>\"\",'Ansprechpartner-Meldung'!$E$2,\"\")","v":""},null,null,null,null,null,null,null,null,null,null,null,null,null,null,""]
[{"$f":"IF(E141<>\"\",'Ansprechpartner-Meldung'!$E$2,\"\")","v":""},null,null,null,null,null,null,null,null,null,null,null,null,null,null,""]
[{"$f":"IF(E142<>\"\",'Ansprechpartner-Meldung'!$E$2,\"\")","v":""},null,null,null,null,null,null,null,null,null,null,null,null,null,null,""]
[{"$f":"IF(E143<>\"\",'Ansprechpartner-Meldung'!$E$2,\"\")","v":""},null,null,null,null,null,null,null,null,null,null,null,null,null,null,""]
[{"$f":"IF(E144<>\"\",'Ansprechpartner-Meldung'!$E$2,\"\")","v":""},null,null,null,null,null,null,null,null,null,null,null,null,null,null,""]
[{"$f":"IF(E145<>\"\",'Ansprechpartner-Meldung'!$E$2,\"\")","v":""},null,null,null,null,null,null,null,null,null,null,null,null,null,null,""]
[{"$f":"IF(E146<>\"\",'Ansprechpartner-Meldung'!$E$2,\"\")","v":""},null,null,null,null,null,null,null,null,null,null,null,null,null,null,""]
[{"$f":"IF(E147<>\"\",'Ansprechpartner-Meldung'!$E$2,\"\")","v":""},null,null,null,null,null,null,null,null,null,null,null,null,null,null,""]
[{"$f":"IF(E148<>\"\",'Ansprechpartner-Meldung'!$E$2,\"\")","v":""},null,null,null,null,null,null,null,null,null,null,null,null,null,null,""]
[{"$f":"IF(E149<>\"\",'Ansprechpartner-Meldung'!$E$2,\"\")","v":""},null,null,null,null,null,null,null,null,null,null,null,null,null,null,""]
[{"$f":"IF(E150<>\"\",'Ansprechpartner-Meldung'!$E$2,\"\")","v":""},null,null,null,null,null,null,null,null,null,null,null,null,null,null,""]
[{"$f":"IF(E151<>\"\",'Ansprechpartner-Meldung'!$E$2,\"\")","v":""},null,null,null,null,null,null,null,null,null,null,null,null,null,null,""]
[{"$f":"IF(E152<>\"\",'Ansprechpartner-Meldung'!$E$2,\"\")","v":""},null,null,null,null,null,null,null,null,null,null,null,null,null,null,""]
[{"$f":"IF(E153<>\"\",'Ansprechpartner-Meldung'!$E$2,\"\")","v":""},null,null,null,null,null,null,null,null,null,null,null,null,null,null,""]
[{"$f":"IF(E154<>\"\",'Ansprechpartner-Meldung'!$E$2,\"\")","v":""},null,null,null,null,null,null,null,null,null,null,null,null,null,null,""]
[{"$f":"IF(E155<>\"\",'Ansprechpartner-Meldung'!$E$2,\"\")","v":""},null,null,null,null,null,null,null,null,null,null,null,null,null,null,""]
[{"$f":"IF(E156<>\"\",'Ansprechpartner-Meldung'!$E$2,\"\")","v":""},null,null,null,null,null,null,null,null,null,null,null,null,null,null,""]
[{"$f":"IF(E157<>\"\",'Ansprechpartner-Meldung'!$E$2,\"\")","v":""},null,null,null,null,null,null,null,null,null,null,null,null,null,null,""]
[{"$f":"IF(E158<>\"\",'Ansprechpartner-Meldung'!$E$2,\"\")","v":""},null,null,null,null,null,null,null,null,null,null,null,null,null,null,""]
[{"$f":"IF(E159<>\"\",'Ansprechpartner-Meldung'!$E$2,\"\")","v":""},null,null,null,null,null,null,null,null,null,null,null,null,null,null,""]
[{"$f":"IF(E160<>\"\",'Ansprechpartner-Meldung'!$E$2,\"\")","v":""},null,null,null,null,null,null,null,null,null,null,null,null,null,null,""]
[{"$f":"IF(E161<>\"\",'Ansprechpartner-Meldung'!$E$2,\"\")","v":""},null,null,null,null,null,null,null,null,null,null,null,null,null,null,""]
[{"$f":"IF(E162<>\"\",'Ansprechpartner-Meldung'!$E$2,\"\")","v":""},null,null,null,null,null,null,null,null,null,null,null,null,null,null,""]
[{"$f":"IF(E163<>\"\",'Ansprechpartner-Meldung'!$E$2,\"\")","v":""},null,null,null,null,null,null,null,null,null,null,null,null,null,null,""]
[{"$f":"IF(E164<>\"\",'Ansprechpartner-Meldung'!$E$2,\"\")","v":""},null,null,null,null,null,null,null,null,null,null,null,null,null,null,""]
[{"$f":"IF(E165<>\"\",'Ansprechpartner-Meldung'!$E$2,\"\")","v":""},null,null,null,null,null,null,null,null,null,null,null,null,null,null,""]
[{"$f":"IF(E166<>\"\",'Ansprechpartner-Meldung'!$E$2,\"\")","v":""},null,null,null,null,null,null,null,null,null,null,null,null,null,null,""]
[{"$f":"IF(E167<>\"\",'Ansprechpartner-Meldung'!$E$2,\"\")","v":""},null,null,null,null,null,null,null,null,null,null,null,null,null,null,{"$f":"IF(OR(C167=\"AK Offen\",C167=\"AK 17/18\",C167=\"AK 15/16\"),COUNT(J167:O167),\"\")","v":""}]
[{"$f":"IF(E168<>\"\",'Ansprechpartner-Meldung'!$E$2,\"\")","v":""},null,null,null,null,null,null,null,null,null,null,null,null,null,null,{"$f":"IF(OR(C168=\"AK Offen\",C168=\"AK 17/18\",C168=\"AK 15/16\"),COUNT(J168:O168),\"\")","v":""}]
[{"$f":"IF(E169<>\"\",'Ansprechpartner-Meldung'!$E$2,\"\")","v":""},null,null,null,null,null,null,null,null,null,null,null,null,null,null,""]
[{"$f":"IF(E170<>\"\",'Ansprechpartner-Meldung'!$E$2,\"\")","v":""},null,null,null,null,null,null,null,null,null,null,null,null,null,null,""]
[{"$f":"IF(E171<>\"\",'Ansprechpartner-Meldung'!$E$2,\"\")","v":""},null,null,null,null,null,null,null,null,null,null,null,null,null,null,""]
[{"$f":"IF(E172<>\"\",'Ansprechpartner-Meldung'!$E$2,\"\")","v":""},null,null,null,null,null,null,null,null,null,null,null,null,null,null,""]
[{"$f":"IF(E173<>\"\",'Ansprechpartner-Meldung'!$E$2,\"\")","v":""},null,null,null,null,null,null,null,null,null,null,null,null,null,null,""]
[{"$f":"IF(E174<>\"\",'Ansprechpartner-Meldung'!$E$2,\"\")","v":""},null,null,null,null,null,null,null,null,null,null,null,null,null,null,""]
[{"$f":"IF(E175<>\"\",'Ansprechpartner-Meldung'!$E$2,\"\")","v":""},null,null,null,null,null,null,null,null,null,null,null,null,null,null,""]
[{"$f":"IF(E176<>\"\",'Ansprechpartner-Meldung'!$E$2,\"\")","v":""},null,null,null,null,null,null,null,null,null,null,null,null,null,null,""]
[{"$f":"IF(E177<>\"\",'Ansprechpartner-Meldung'!$E$2,\"\")","v":""},null,null,null,null,null,null,null,null,null,null,null,null,null,null,""]
[{"$f":"IF(E178<>\"\",'Ansprechpartner-Meldung'!$E$2,\"\")","v":""},null,null,null,null,null,null,null,null,null,null,null,null,null,null,""]
[{"$f":"IF(E179<>\"\",'Ansprechpartner-Meldung'!$E$2,\"\")","v":""},null,null,null,null,null,null,null,null,null,null,null,null,null,null,""]
[{"$f":"IF(E180<>\"\",'Ansprechpartner-Meldung'!$E$2,\"\")","v":""},null,null,null,null,null,null,null,null,null,null,null,null,null,null,""]
[{"$f":"IF(E181<>\"\",'Ansprechpartner-Meldung'!$E$2,\"\")","v":""},null,null,null,null,null,null,null,null,null,null,null,null,null,null,""]
[{"$f":"IF(E182<>\"\",'Ansprechpartner-Meldung'!$E$2,\"\")","v":""},null,null,null,null,null,null,null,null,null,null,null,null,null,null,""]
[{"$f":"IF(E183<>\"\",'Ansprechpartner-Meldung'!$E$2,\"\")","v":""},null,null,null,null,null,null,null,null,null,null,null,null,null,null,""]
[{"$f":"IF(E184<>\"\",'Ansprechpartner-Meldung'!$E$2,\"\")","v":""},null,null,null,null,null,null,null,null,null,null,null,null,null,null,""]
[{"$f":"IF(E185<>\"\",'Ansprechpartner-Meldung'!$E$2,\"\")","v":""},null,null,null,null,null,null,null,null,null,null,null,null,null,null,""]
[{"$f":"IF(E186<>\"\",'Ansprechpartner-Meldung'!$E$2,\"\")","v":""},null,null,null,null,null,null,null,null,null,null,null,null,null,null,""]
[{"$f":"IF(E187<>\"\",'Ansprechpartner-Meldung'!$E$2,\"\")","v":""},null,null,null,null,null,null,null,null,null,null,null,null,null,null,""]
[{"$f":"IF(E188<>\"\",'Ansprechpartner-Meldung'!$E$2,\"\")","v":""},null,null,null,null,null,null,null,null,null,null,null,null,null,null,""]
[{"$f":"IF(E189<>\"\",'Ansprechpartner-Meldung'!$E$2,\"\")","v":""},null,null,null,null,null,null,null,null,null,null,null,null,null,null,""]
[{"$f":"IF(E190<>\"\",'Ansprechpartner-Meldung'!$E$2,\"\")","v":""},null,null,null,null,null,null,null,null,null,null,null,null,null,null,""]
[{"$f":"IF(E191<>\"\",'Ansprechpartner-Meldung'!$E$2,\"\")","v":""},null,null,null,null,null,null,null,null,null,null,null,null,null,null,""]
[{"$f":"IF(E192<>\"\",'Ansprechpartner-Meldung'!$E$2,\"\")","v":""},null,null,null,null,null,null,null,null,null,null,null,null,null,null,""]
[{"$f":"IF(E193<>\"\",'Ansprechpartner-Meldung'!$E$2,\"\")","v":""},null,null,null,null,null,null,null,null,null,null,null,null,null,null,""]
[{"$f":"IF(E194<>\"\",'Ansprechpartner-Meldung'!$E$2,\"\")","v":""},null,null,null,null,null,null,null,null,null,null,null,null,null,null,""]
[{"$f":"IF(E195<>\"\",'Ansprechpartner-Meldung'!$E$2,\"\")","v":""},null,null,null,null,null,null,null,null,null,null,null,null,null,null,""]
[{"$f":"IF(E196<>\"\",'Ansprechpartner-Meldung'!$E$2,\"\")","v":""},null,null,null,null,null,null,null,null,null,null,null,null,null,null,""]
[{"$f":"IF(E197<>\"\",'Ansprechpartner-Meldung'!$E$2,\"\")","v":""},null,null,null,null,null,null,null,null,null,null,null,null,null,null,""]
[{"$f":"IF(E198<>\"\",'Ansprechpartner-Meldung'!$E$2,\"\")","v":""},null,null,null,null,null,null,null,null,null,null,null,null,null,null,""]
[{"$f":"IF(E199<>\"\",'Ansprechpartner-Meldung'!$E$2,\"\")","v":""},null,null,null,null,null,null,null,null,null,null,null,null,null,null,""]
[{"$f":"IF(E200<>\"\",'Ansprechpartner-Meldung'!$E$2,\"\")","v":""},null,null,null,null,null,null,null,null,null,null,null,null,null,null,""]

{"sheet":"Mannschaft-Meldung","index":3,"n_rows":150,"n_cols":8,"rows_kept":150,"cut":false,"hidden":false,"merged":[]}
["Q-GLD","Geschlecht","Altersklasse","Name","Platz","Punkte","Gliederung","Kontroll-vermerk / Zulassung"]
[{"$f":"IF(D2<>\"\",'Ansprechpartner-Meldung'!$E$2,\"\")","v":""}]
[{"$f":"IF(D3<>\"\",'Ansprechpartner-Meldung'!$E$2,\"\")","v":""}]
[{"$f":"IF(D4<>\"\",'Ansprechpartner-Meldung'!$E$2,\"\")","v":""}]
[{"$f":"IF(D5<>\"\",'Ansprechpartner-Meldung'!$E$2,\"\")","v":""}]
[{"$f":"IF(D6<>\"\",'Ansprechpartner-Meldung'!$E$2,\"\")","v":""}]
[{"$f":"IF(D7<>\"\",'Ansprechpartner-Meldung'!$E$2,\"\")","v":""}]
[{"$f":"IF(D8<>\"\",'Ansprechpartner-Meldung'!$E$2,\"\")","v":""}]
[{"$f":"IF(D9<>\"\",'Ansprechpartner-Meldung'!$E$2,\"\")","v":""}]
[{"$f":"IF(D10<>\"\",'Ansprechpartner-Meldung'!$E$2,\"\")","v":""}]
[{"$f":"IF(D11<>\"\",'Ansprechpartner-Meldung'!$E$2,\"\")","v":""}]
[{"$f":"IF(D12<>\"\",'Ansprechpartner-Meldung'!$E$2,\"\")","v":""}]
[{"$f":"IF(D13<>\"\",'Ansprechpartner-Meldung'!$E$2,\"\")","v":""}]
[{"$f":"IF(D14<>\"\",'Ansprechpartner-Meldung'!$E$2,\"\")","v":""}]
[{"$f":"IF(D15<>\"\",'Ansprechpartner-Meldung'!$E$2,\"\")","v":""}]
[{"$f":"IF(D16<>\"\",'Ansprechpartner-Meldung'!$E$2,\"\")","v":""}]
[{"$f":"IF(D17<>\"\",'Ansprechpartner-Meldung'!$E$2,\"\")","v":""}]
[{"$f":"IF(D18<>\"\",'Ansprechpartner-Meldung'!$E$2,\"\")","v":""}]
[{"$f":"IF(D19<>\"\",'Ansprechpartner-Meldung'!$E$2,\"\")","v":""}]
[{"$f":"IF(D20<>\"\",'Ansprechpartner-Meldung'!$E$2,\"\")","v":""}]
[{"$f":"IF(D21<>\"\",'Ansprechpartner-Meldung'!$E$2,\"\")","v":""}]
[{"$f":"IF(D22<>\"\",'Ansprechpartner-Meldung'!$E$2,\"\")","v":""}]
[{"$f":"IF(D23<>\"\",'Ansprechpartner-Meldung'!$E$2,\"\")","v":""}]
[{"$f":"IF(D24<>\"\",'Ansprechpartner-Meldung'!$E$2,\"\")","v":""}]
[{"$f":"IF(D25<>\"\",'Ansprechpartner-Meldung'!$E$2,\"\")","v":""}]
[{"$f":"IF(D26<>\"\",'Ansprechpartner-Meldung'!$E$2,\"\")","v":""}]
[{"$f":"IF(D27<>\"\",'Ansprechpartner-Meldung'!$E$2,\"\")","v":""}]
[{"$f":"IF(D28<>\"\",'Ansprechpartner-Meldung'!$E$2,\"\")","v":""}]
[{"$f":"IF(D29<>\"\",'Ansprechpartner-Meldung'!$E$2,\"\")","v":""}]
[{"$f":"IF(D30<>\"\",'Ansprechpartner-Meldung'!$E$2,\"\")","v":""}]
[{"$f":"IF(D31<>\"\",'Ansprechpartner-Meldung'!$E$2,\"\")","v":""}]
[{"$f":"IF(D32<>\"\",'Ansprechpartner-Meldung'!$E$2,\"\")","v":""}]
[{"$f":"IF(D33<>\"\",'Ansprechpartner-Meldung'!$E$2,\"\")","v":""}]
[{"$f":"IF(D34<>\"\",'Ansprechpartner-Meldung'!$E$2,\"\")","v":""}]
[{"$f":"IF(D35<>\"\",'Ansprechpartner-Meldung'!$E$2,\"\")","v":""}]
[{"$f":"IF(D36<>\"\",'Ansprechpartner-Meldung'!$E$2,\"\")","v":""}]
[{"$f":"IF(D37<>\"\",'Ansprechpartner-Meldung'!$E$2,\"\")","v":""}]
[{"$f":"IF(D38<>\"\",'Ansprechpartner-Meldung'!$E$2,\"\")","v":""}]
[{"$f":"IF(D39<>\"\",'Ansprechpartner-Meldung'!$E$2,\"\")","v":""}]
[{"$f":"IF(D40<>\"\",'Ansprechpartner-Meldung'!$E$2,\"\")","v":""}]
[{"$f":"IF(D41<>\"\",'Ansprechpartner-Meldung'!$E$2,\"\")","v":""}]
[{"$f":"IF(D42<>\"\",'Ansprechpartner-Meldung'!$E$2,\"\")","v":""}]
[{"$f":"IF(D43<>\"\",'Ansprechpartner-Meldung'!$E$2,\"\")","v":""}]
[{"$f":"IF(D44<>\"\",'Ansprechpartner-Meldung'!$E$2,\"\")","v":""}]
[{"$f":"IF(D45<>\"\",'Ansprechpartner-Meldung'!$E$2,\"\")","v":""}]
[{"$f":"IF(D46<>\"\",'Ansprechpartner-Meldung'!$E$2,\"\")","v":""}]
[{"$f":"IF(D47<>\"\",'Ansprechpartner-Meldung'!$E$2,\"\")","v":""}]
[{"$f":"IF(D48<>\"\",'Ansprechpartner-Meldung'!$E$2,\"\")","v":""}]
[{"$f":"IF(D49<>\"\",'Ansprechpartner-Meldung'!$E$2,\"\")","v":""}]
[{"$f":"IF(D50<>\"\",'Ansprechpartner-Meldung'!$E$2,\"\")","v":""}]
[{"$f":"IF(D51<>\"\",'Ansprechpartner-Meldung'!$E$2,\"\")","v":""}]
[{"$f":"IF(D52<>\"\",'Ansprechpartner-Meldung'!$E$2,\"\")","v":""}]
[{"$f":"IF(D53<>\"\",'Ansprechpartner-Meldung'!$E$2,\"\")","v":""}]
[{"$f":"IF(D54<>\"\",'Ansprechpartner-Meldung'!$E$2,\"\")","v":""}]
[{"$f":"IF(D55<>\"\",'Ansprechpartner-Meldung'!$E$2,\"\")","v":""}]
[{"$f":"IF(D56<>\"\",'Ansprechpartner-Meldung'!$E$2,\"\")","v":""}]
[{"$f":"IF(D57<>\"\",'Ansprechpartner-Meldung'!$E$2,\"\")","v":""}]
[{"$f":"IF(D58<>\"\",'Ansprechpartner-Meldung'!$E$2,\"\")","v":""}]
[{"$f":"IF(D59<>\"\",'Ansprechpartner-Meldung'!$E$2,\"\")","v":""}]
[{"$f":"IF(D60<>\"\",'Ansprechpartner-Meldung'!$E$2,\"\")","v":""}]
[{"$f":"IF(D61<>\"\",'Ansprechpartner-Meldung'!$E$2,\"\")","v":""}]
[{"$f":"IF(D62<>\"\",'Ansprechpartner-Meldung'!$E$2,\"\")","v":""}]
[{"$f":"IF(D63<>\"\",'Ansprechpartner-Meldung'!$E$2,\"\")","v":""}]
[{"$f":"IF(D64<>\"\",'Ansprechpartner-Meldung'!$E$2,\"\")","v":""}]
[{"$f":"IF(D65<>\"\",'Ansprechpartner-Meldung'!$E$2,\"\")","v":""}]
[{"$f":"IF(D66<>\"\",'Ansprechpartner-Meldung'!$E$2,\"\")","v":""}]
[{"$f":"IF(D67<>\"\",'Ansprechpartner-Meldung'!$E$2,\"\")","v":""}]
[{"$f":"IF(D68<>\"\",'Ansprechpartner-Meldung'!$E$2,\"\")","v":""}]
[{"$f":"IF(D69<>\"\",'Ansprechpartner-Meldung'!$E$2,\"\")","v":""}]
[{"$f":"IF(D70<>\"\",'Ansprechpartner-Meldung'!$E$2,\"\")","v":""}]
[{"$f":"IF(D71<>\"\",'Ansprechpartner-Meldung'!$E$2,\"\")","v":""}]
[{"$f":"IF(D72<>\"\",'Ansprechpartner-Meldung'!$E$2,\"\")","v":""}]
[{"$f":"IF(D73<>\"\",'Ansprechpartner-Meldung'!$E$2,\"\")","v":""}]
[{"$f":"IF(D74<>\"\",'Ansprechpartner-Meldung'!$E$2,\"\")","v":""}]
[{"$f":"IF(D75<>\"\",'Ansprechpartner-Meldung'!$E$2,\"\")","v":""}]
[{"$f":"IF(D76<>\"\",'Ansprechpartner-Meldung'!$E$2,\"\")","v":""}]
[{"$f":"IF(D77<>\"\",'Ansprechpartner-Meldung'!$E$2,\"\")","v":""}]
[{"$f":"IF(D78<>\"\",'Ansprechpartner-Meldung'!$E$2,\"\")","v":""}]
[{"$f":"IF(D79<>\"\",'Ansprechpartner-Meldung'!$E$2,\"\")","v":""}]
[{"$f":"IF(D80<>\"\",'Ansprechpartner-Meldung'!$E$2,\"\")","v":""}]
[{"$f":"IF(D81<>\"\",'Ansprechpartner-Meldung'!$E$2,\"\")","v":""}]
[{"$f":"IF(D82<>\"\",'Ansprechpartner-Meldung'!$E$2,\"\")","v":""}]
[{"$f":"IF(D83<>\"\",'Ansprechpartner-Meldung'!$E$2,\"\")","v":""}]
[{"$f":"IF(D84<>\"\",'Ansprechpartner-Meldung'!$E$2,\"\")","v":""}]
[{"$f":"IF(D85<>\"\",'Ansprechpartner-Meldung'!$E$2,\"\")","v":""}]
[{"$f":"IF(D86<>\"\",'Ansprechpartner-Meldung'!$E$2,\"\")","v":""}]
[{"$f":"IF(D87<>\"\",'Ansprechpartner-Meldung'!$E$2,\"\")","v":""}]
[{"$f":"IF(D88<>\"\",'Ansprechpartner-Meldung'!$E$2,\"\")","v":""}]
[{"$f":"IF(D89<>\"\",'Ansprechpartner-Meldung'!$E$2,\"\")","v":""}]
[{"$f":"IF(D90<>\"\",'Ansprechpartner-Meldung'!$E$2,\"\")","v":""}]
[{"$f":"IF(D91<>\"\",'Ansprechpartner-Meldung'!$E$2,\"\")","v":""}]
[{"$f":"IF(D92<>\"\",'Ansprechpartner-Meldung'!$E$2,\"\")","v":""}]
[{"$f":"IF(D93<>\"\",'Ansprechpartner-Meldung'!$E$2,\"\")","v":""}]
[{"$f":"IF(D94<>\"\",'Ansprechpartner-Meldung'!$E$2,\"\")","v":""}]
[{"$f":"IF(D95<>\"\",'Ansprechpartner-Meldung'!$E$2,\"\")","v":""}]
[{"$f":"IF(D96<>\"\",'Ansprechpartner-Meldung'!$E$2,\"\")","v":""}]
[{"$f":"IF(D97<>\"\",'Ansprechpartner-Meldung'!$E$2,\"\")","v":""}]
[{"$f":"IF(D98<>\"\",'Ansprechpartner-Meldung'!$E$2,\"\")","v":""}]
[{"$f":"IF(D99<>\"\",'Ansprechpartner-Meldung'!$E$2,\"\")","v":""}]
[{"$f":"IF(D100<>\"\",'Ansprechpartner-Meldung'!$E$2,\"\")","v":""}]
[{"$f":"IF(D101<>\"\",'Ansprechpartner-Meldung'!$E$2,\"\")","v":""}]
[{"$f":"IF(D102<>\"\",'Ansprechpartner-Meldung'!$E$2,\"\")","v":""}]
[{"$f":"IF(D103<>\"\",'Ansprechpartner-Meldung'!$E$2,\"\")","v":""}]
[{"$f":"IF(D104<>\"\",'Ansprechpartner-Meldung'!$E$2,\"\")","v":""}]
[{"$f":"IF(D105<>\"\",'Ansprechpartner-Meldung'!$E$2,\"\")","v":""}]
[{"$f":"IF(D106<>\"\",'Ansprechpartner-Meldung'!$E$2,\"\")","v":""}]
[{"$f":"IF(D107<>\"\",'Ansprechpartner-Meldung'!$E$2,\"\")","v":""}]
[{"$f":"IF(D108<>\"\",'Ansprechpartner-Meldung'!$E$2,\"\")","v":""}]
[{"$f":"IF(D109<>\"\",'Ansprechpartner-Meldung'!$E$2,\"\")","v":""}]
[{"$f":"IF(D110<>\"\",'Ansprechpartner-Meldung'!$E$2,\"\")","v":""}]
[{"$f":"IF(D111<>\"\",'Ansprechpartner-Meldung'!$E$2,\"\")","v":""}]
[{"$f":"IF(D112<>\"\",'Ansprechpartner-Meldung'!$E$2,\"\")","v":""}]
[{"$f":"IF(D113<>\"\",'Ansprechpartner-Meldung'!$E$2,\"\")","v":""}]
[{"$f":"IF(D114<>\"\",'Ansprechpartner-Meldung'!$E$2,\"\")","v":""}]
[{"$f":"IF(D115<>\"\",'Ansprechpartner-Meldung'!$E$2,\"\")","v":""}]
[{"$f":"IF(D116<>\"\",'Ansprechpartner-Meldung'!$E$2,\"\")","v":""}]
[{"$f":"IF(D117<>\"\",'Ansprechpartner-Meldung'!$E$2,\"\")","v":""}]
[{"$f":"IF(D118<>\"\",'Ansprechpartner-Meldung'!$E$2,\"\")","v":""}]
[{"$f":"IF(D119<>\"\",'Ansprechpartner-Meldung'!$E$2,\"\")","v":""}]
[{"$f":"IF(D120<>\"\",'Ansprechpartner-Meldung'!$E$2,\"\")","v":""}]
[{"$f":"IF(D121<>\"\",'Ansprechpartner-Meldung'!$E$2,\"\")","v":""}]
[{"$f":"IF(D122<>\"\",'Ansprechpartner-Meldung'!$E$2,\"\")","v":""}]
[{"$f":"IF(D123<>\"\",'Ansprechpartner-Meldung'!$E$2,\"\")","v":""}]
[{"$f":"IF(D124<>\"\",'Ansprechpartner-Meldung'!$E$2,\"\")","v":""}]
[{"$f":"IF(D125<>\"\",'Ansprechpartner-Meldung'!$E$2,\"\")","v":""}]
[{"$f":"IF(D126<>\"\",'Ansprechpartner-Meldung'!$E$2,\"\")","v":""}]
[{"$f":"IF(D127<>\"\",'Ansprechpartner-Meldung'!$E$2,\"\")","v":""}]
[{"$f":"IF(D128<>\"\",'Ansprechpartner-Meldung'!$E$2,\"\")","v":""}]
[{"$f":"IF(D129<>\"\",'Ansprechpartner-Meldung'!$E$2,\"\")","v":""}]
[{"$f":"IF(D130<>\"\",'Ansprechpartner-Meldung'!$E$2,\"\")","v":""}]
[{"$f":"IF(D131<>\"\",'Ansprechpartner-Meldung'!$E$2,\"\")","v":""}]
[{"$f":"IF(D132<>\"\",'Ansprechpartner-Meldung'!$E$2,\"\")","v":""}]
[{"$f":"IF(D133<>\"\",'Ansprechpartner-Meldung'!$E$2,\"\")","v":""}]
[{"$f":"IF(D134<>\"\",'Ansprechpartner-Meldung'!$E$2,\"\")","v":""}]
[{"$f":"IF(D135<>\"\",'Ansprechpartner-Meldung'!$E$2,\"\")","v":""}]
[{"$f":"IF(D136<>\"\",'Ansprechpartner-Meldung'!$E$2,\"\")","v":""}]
[{"$f":"IF(D137<>\"\",'Ansprechpartner-Meldung'!$E$2,\"\")","v":""}]
[{"$f":"IF(D138<>\"\",'Ansprechpartner-Meldung'!$E$2,\"\")","v":""}]
[{"$f":"IF(D139<>\"\",'Ansprechpartner-Meldung'!$E$2,\"\")","v":""}]
[{"$f":"IF(D140<>\"\",'Ansprechpartner-Meldung'!$E$2,\"\")","v":""}]
[{"$f":"IF(D141<>\"\",'Ansprechpartner-Meldung'!$E$2,\"\")","v":""}]
[{"$f":"IF(D142<>\"\",'Ansprechpartner-Meldung'!$E$2,\"\")","v":""}]
[{"$f":"IF(D143<>\"\",'Ansprechpartner-Meldung'!$E$2,\"\")","v":""}]
[{"$f":"IF(D144<>\"\",'Ansprechpartner-Meldung'!$E$2,\"\")","v":""}]
[{"$f":"IF(D145<>\"\",'Ansprechpartner-Meldung'!$E$2,\"\")","v":""}]
[{"$f":"IF(D146<>\"\",'Ansprechpartner-Meldung'!$E$2,\"\")","v":""}]
[{"$f":"IF(D147<>\"\",'Ansprechpartner-Meldung'!$E$2,\"\")","v":""}]
[{"$f":"IF(D148<>\"\",'Ansprechpartner-Meldung'!$E$2,\"\")","v":""}]
[{"$f":"IF(D149<>\"\",'Ansprechpartner-Meldung'!$E$2,\"\")","v":""}]
[{"$f":"IF(D150<>\"\",'Ansprechpartner-Meldung'!$E$2,\"\")","v":""}]

{"sheet":"LineThrow-Meldung","index":4,"n_rows":150,"n_cols":7,"rows_kept":150,"cut":false,"hidden":false,"merged":[]}
["Q-GLD","Geschlecht","Altersklasse","Name","Gliederung","Line Throw","Kontroll-vermerk / Zulassung"]
[{"$f":"IF(D2<>\"\",'Ansprechpartner-Meldung'!$E$2,\"\")","v":""},null,{"$f":"IF(A2<>\"\",\"Open\",\"\")","v":""}]
[{"$f":"IF(D3<>\"\",'Ansprechpartner-Meldung'!$E$2,\"\")","v":""},null,{"$f":"IF(A3<>\"\",\"Open\",\"\")","v":""}]
[{"$f":"IF(D4<>\"\",'Ansprechpartner-Meldung'!$E$2,\"\")","v":""},null,""]
[{"$f":"IF(D5<>\"\",'Ansprechpartner-Meldung'!$E$2,\"\")","v":""},null,""]
[{"$f":"IF(D6<>\"\",'Ansprechpartner-Meldung'!$E$2,\"\")","v":""},null,""]
[{"$f":"IF(D7<>\"\",'Ansprechpartner-Meldung'!$E$2,\"\")","v":""},null,""]
[{"$f":"IF(D8<>\"\",'Ansprechpartner-Meldung'!$E$2,\"\")","v":""},null,""]
[{"$f":"IF(D9<>\"\",'Ansprechpartner-Meldung'!$E$2,\"\")","v":""},null,""]
[{"$f":"IF(D10<>\"\",'Ansprechpartner-Meldung'!$E$2,\"\")","v":""},null,""]
[{"$f":"IF(D11<>\"\",'Ansprechpartner-Meldung'!$E$2,\"\")","v":""},null,""]
[{"$f":"IF(D12<>\"\",'Ansprechpartner-Meldung'!$E$2,\"\")","v":""},null,""]
[{"$f":"IF(D13<>\"\",'Ansprechpartner-Meldung'!$E$2,\"\")","v":""},null,""]
[{"$f":"IF(D14<>\"\",'Ansprechpartner-Meldung'!$E$2,\"\")","v":""},null,""]
[{"$f":"IF(D15<>\"\",'Ansprechpartner-Meldung'!$E$2,\"\")","v":""},null,""]
[{"$f":"IF(D16<>\"\",'Ansprechpartner-Meldung'!$E$2,\"\")","v":""},null,""]
[{"$f":"IF(D17<>\"\",'Ansprechpartner-Meldung'!$E$2,\"\")","v":""},null,""]
[{"$f":"IF(D18<>\"\",'Ansprechpartner-Meldung'!$E$2,\"\")","v":""},null,""]
[{"$f":"IF(D19<>\"\",'Ansprechpartner-Meldung'!$E$2,\"\")","v":""},null,""]
[{"$f":"IF(D20<>\"\",'Ansprechpartner-Meldung'!$E$2,\"\")","v":""},null,""]
[{"$f":"IF(D21<>\"\",'Ansprechpartner-Meldung'!$E$2,\"\")","v":""},null,""]
[{"$f":"IF(D22<>\"\",'Ansprechpartner-Meldung'!$E$2,\"\")","v":""},null,""]
[{"$f":"IF(D23<>\"\",'Ansprechpartner-Meldung'!$E$2,\"\")","v":""},null,""]
[{"$f":"IF(D24<>\"\",'Ansprechpartner-Meldung'!$E$2,\"\")","v":""},null,""]
[{"$f":"IF(D25<>\"\",'Ansprechpartner-Meldung'!$E$2,\"\")","v":""},null,""]
[{"$f":"IF(D26<>\"\",'Ansprechpartner-Meldung'!$E$2,\"\")","v":""},null,""]
[{"$f":"IF(D27<>\"\",'Ansprechpartner-Meldung'!$E$2,\"\")","v":""},null,""]
[{"$f":"IF(D28<>\"\",'Ansprechpartner-Meldung'!$E$2,\"\")","v":""},null,""]
[{"$f":"IF(D29<>\"\",'Ansprechpartner-Meldung'!$E$2,\"\")","v":""},null,""]
[{"$f":"IF(D30<>\"\",'Ansprechpartner-Meldung'!$E$2,\"\")","v":""},null,""]
[{"$f":"IF(D31<>\"\",'Ansprechpartner-Meldung'!$E$2,\"\")","v":""},null,""]
[{"$f":"IF(D32<>\"\",'Ansprechpartner-Meldung'!$E$2,\"\")","v":""},null,""]
[{"$f":"IF(D33<>\"\",'Ansprechpartner-Meldung'!$E$2,\"\")","v":""},null,""]
[{"$f":"IF(D34<>\"\",'Ansprechpartner-Meldung'!$E$2,\"\")","v":""},null,""]
[{"$f":"IF(D35<>\"\",'Ansprechpartner-Meldung'!$E$2,\"\")","v":""},null,""]
[{"$f":"IF(D36<>\"\",'Ansprechpartner-Meldung'!$E$2,\"\")","v":""},null,""]
[{"$f":"IF(D37<>\"\",'Ansprechpartner-Meldung'!$E$2,\"\")","v":""},null,""]
[{"$f":"IF(D38<>\"\",'Ansprechpartner-Meldung'!$E$2,\"\")","v":""},null,""]
[{"$f":"IF(D39<>\"\",'Ansprechpartner-Meldung'!$E$2,\"\")","v":""},null,""]
[{"$f":"IF(D40<>\"\",'Ansprechpartner-Meldung'!$E$2,\"\")","v":""},null,""]
[{"$f":"IF(D41<>\"\",'Ansprechpartner-Meldung'!$E$2,\"\")","v":""},null,""]
[{"$f":"IF(D42<>\"\",'Ansprechpartner-Meldung'!$E$2,\"\")","v":""},null,""]
[{"$f":"IF(D43<>\"\",'Ansprechpartner-Meldung'!$E$2,\"\")","v":""},null,""]
[{"$f":"IF(D44<>\"\",'Ansprechpartner-Meldung'!$E$2,\"\")","v":""},null,""]
[{"$f":"IF(D45<>\"\",'Ansprechpartner-Meldung'!$E$2,\"\")","v":""},null,""]
[{"$f":"IF(D46<>\"\",'Ansprechpartner-Meldung'!$E$2,\"\")","v":""},null,""]
[{"$f":"IF(D47<>\"\",'Ansprechpartner-Meldung'!$E$2,\"\")","v":""},null,""]
[{"$f":"IF(D48<>\"\",'Ansprechpartner-Meldung'!$E$2,\"\")","v":""},null,""]
[{"$f":"IF(D49<>\"\",'Ansprechpartner-Meldung'!$E$2,\"\")","v":""},null,""]
[{"$f":"IF(D50<>\"\",'Ansprechpartner-Meldung'!$E$2,\"\")","v":""},null,""]
[{"$f":"IF(D51<>\"\",'Ansprechpartner-Meldung'!$E$2,\"\")","v":""},null,""]
[{"$f":"IF(D52<>\"\",'Ansprechpartner-Meldung'!$E$2,\"\")","v":""},null,""]
[{"$f":"IF(D53<>\"\",'Ansprechpartner-Meldung'!$E$2,\"\")","v":""},null,""]
[{"$f":"IF(D54<>\"\",'Ansprechpartner-Meldung'!$E$2,\"\")","v":""},null,""]
[{"$f":"IF(D55<>\"\",'Ansprechpartner-Meldung'!$E$2,\"\")","v":""},null,""]
[{"$f":"IF(D56<>\"\",'Ansprechpartner-Meldung'!$E$2,\"\")","v":""},null,""]
[{"$f":"IF(D57<>\"\",'Ansprechpartner-Meldung'!$E$2,\"\")","v":""},null,""]
[{"$f":"IF(D58<>\"\",'Ansprechpartner-Meldung'!$E$2,\"\")","v":""},null,""]
[{"$f":"IF(D59<>\"\",'Ansprechpartner-Meldung'!$E$2,\"\")","v":""},null,""]
[{"$f":"IF(D60<>\"\",'Ansprechpartner-Meldung'!$E$2,\"\")","v":""},null,""]
[{"$f":"IF(D61<>\"\",'Ansprechpartner-Meldung'!$E$2,\"\")","v":""},null,""]
[{"$f":"IF(D62<>\"\",'Ansprechpartner-Meldung'!$E$2,\"\")","v":""},null,""]
[{"$f":"IF(D63<>\"\",'Ansprechpartner-Meldung'!$E$2,\"\")","v":""},null,""]
[{"$f":"IF(D64<>\"\",'Ansprechpartner-Meldung'!$E$2,\"\")","v":""},null,""]
[{"$f":"IF(D65<>\"\",'Ansprechpartner-Meldung'!$E$2,\"\")","v":""},null,""]
[{"$f":"IF(D66<>\"\",'Ansprechpartner-Meldung'!$E$2,\"\")","v":""},null,""]
[{"$f":"IF(D67<>\"\",'Ansprechpartner-Meldung'!$E$2,\"\")","v":""},null,{"$f":"IF(A67<>\"\",\"Open\",\"\")","v":""}]
[{"$f":"IF(D68<>\"\",'Ansprechpartner-Meldung'!$E$2,\"\")","v":""},null,""]
[{"$f":"IF(D69<>\"\",'Ansprechpartner-Meldung'!$E$2,\"\")","v":""},null,""]
[{"$f":"IF(D70<>\"\",'Ansprechpartner-Meldung'!$E$2,\"\")","v":""},null,""]
[{"$f":"IF(D71<>\"\",'Ansprechpartner-Meldung'!$E$2,\"\")","v":""},null,""]
[{"$f":"IF(D72<>\"\",'Ansprechpartner-Meldung'!$E$2,\"\")","v":""},null,""]
[{"$f":"IF(D73<>\"\",'Ansprechpartner-Meldung'!$E$2,\"\")","v":""},null,""]
[{"$f":"IF(D74<>\"\",'Ansprechpartner-Meldung'!$E$2,\"\")","v":""},null,""]
[{"$f":"IF(D75<>\"\",'Ansprechpartner-Meldung'!$E$2,\"\")","v":""},null,""]
[{"$f":"IF(D76<>\"\",'Ansprechpartner-Meldung'!$E$2,\"\")","v":""},null,""]
[{"$f":"IF(D77<>\"\",'Ansprechpartner-Meldung'!$E$2,\"\")","v":""},null,""]
[{"$f":"IF(D78<>\"\",'Ansprechpartner-Meldung'!$E$2,\"\")","v":""},null,""]
[{"$f":"IF(D79<>\"\",'Ansprechpartner-Meldung'!$E$2,\"\")","v":""},null,""]
[{"$f":"IF(D80<>\"\",'Ansprechpartner-Meldung'!$E$2,\"\")","v":""},null,""]
[{"$f":"IF(D81<>\"\",'Ansprechpartner-Meldung'!$E$2,\"\")","v":""},null,""]
[{"$f":"IF(D82<>\"\",'Ansprechpartner-Meldung'!$E$2,\"\")","v":""},null,""]
[{"$f":"IF(D83<>\"\",'Ansprechpartner-Meldung'!$E$2,\"\")","v":""},null,""]
[{"$f":"IF(D84<>\"\",'Ansprechpartner-Meldung'!$E$2,\"\")","v":""},null,""]
[{"$f":"IF(D85<>\"\",'Ansprechpartner-Meldung'!$E$2,\"\")","v":""},null,""]
[{"$f":"IF(D86<>\"\",'Ansprechpartner-Meldung'!$E$2,\"\")","v":""},null,""]
[{"$f":"IF(D87<>\"\",'Ansprechpartner-Meldung'!$E$2,\"\")","v":""},null,""]
[{"$f":"IF(D88<>\"\",'Ansprechpartner-Meldung'!$E$2,\"\")","v":""},null,""]
[{"$f":"IF(D89<>\"\",'Ansprechpartner-Meldung'!$E$2,\"\")","v":""},null,""]
[{"$f":"IF(D90<>\"\",'Ansprechpartner-Meldung'!$E$2,\"\")","v":""},null,""]
[{"$f":"IF(D91<>\"\",'Ansprechpartner-Meldung'!$E$2,\"\")","v":""},null,""]
[{"$f":"IF(D92<>\"\",'Ansprechpartner-Meldung'!$E$2,\"\")","v":""},null,""]
[{"$f":"IF(D93<>\"\",'Ansprechpartner-Meldung'!$E$2,\"\")","v":""},null,""]
[{"$f":"IF(D94<>\"\",'Ansprechpartner-Meldung'!$E$2,\"\")","v":""},null,""]
[{"$f":"IF(D95<>\"\",'Ansprechpartner-Meldung'!$E$2,\"\")","v":""},null,""]
[{"$f":"IF(D96<>\"\",'Ansprechpartner-Meldung'!$E$2,\"\")","v":""},null,""]
[{"$f":"IF(D97<>\"\",'Ansprechpartner-Meldung'!$E$2,\"\")","v":""},null,""]
[{"$f":"IF(D98<>\"\",'Ansprechpartner-Meldung'!$E$2,\"\")","v":""},null,""]
[{"$f":"IF(D99<>\"\",'Ansprechpartner-Meldung'!$E$2,\"\")","v":""},null,""]
[{"$f":"IF(D100<>\"\",'Ansprechpartner-Meldung'!$E$2,\"\")","v":""},null,""]
[{"$f":"IF(D101<>\"\",'Ansprechpartner-Meldung'!$E$2,\"\")","v":""},null,""]
[{"$f":"IF(D102<>\"\",'Ansprechpartner-Meldung'!$E$2,\"\")","v":""},null,""]
[{"$f":"IF(D103<>\"\",'Ansprechpartner-Meldung'!$E$2,\"\")","v":""},null,""]
[{"$f":"IF(D104<>\"\",'Ansprechpartner-Meldung'!$E$2,\"\")","v":""},null,""]
[{"$f":"IF(D105<>\"\",'Ansprechpartner-Meldung'!$E$2,\"\")","v":""},null,""]
[{"$f":"IF(D106<>\"\",'Ansprechpartner-Meldung'!$E$2,\"\")","v":""},null,""]
[{"$f":"IF(D107<>\"\",'Ansprechpartner-Meldung'!$E$2,\"\")","v":""},null,""]
[{"$f":"IF(D108<>\"\",'Ansprechpartner-Meldung'!$E$2,\"\")","v":""},null,""]
[{"$f":"IF(D109<>\"\",'Ansprechpartner-Meldung'!$E$2,\"\")","v":""},null,""]
[{"$f":"IF(D110<>\"\",'Ansprechpartner-Meldung'!$E$2,\"\")","v":""},null,""]
[{"$f":"IF(D111<>\"\",'Ansprechpartner-Meldung'!$E$2,\"\")","v":""},null,""]
[{"$f":"IF(D112<>\"\",'Ansprechpartner-Meldung'!$E$2,\"\")","v":""},null,""]
[{"$f":"IF(D113<>\"\",'Ansprechpartner-Meldung'!$E$2,\"\")","v":""},null,""]
[{"$f":"IF(D114<>\"\",'Ansprechpartner-Meldung'!$E$2,\"\")","v":""},null,""]
[{"$f":"IF(D115<>\"\",'Ansprechpartner-Meldung'!$E$2,\"\")","v":""},null,""]
[{"$f":"IF(D116<>\"\",'Ansprechpartner-Meldung'!$E$2,\"\")","v":""},null,""]
[{"$f":"IF(D117<>\"\",'Ansprechpartner-Meldung'!$E$2,\"\")","v":""},null,""]
[{"$f":"IF(D118<>\"\",'Ansprechpartner-Meldung'!$E$2,\"\")","v":""},null,""]
[{"$f":"IF(D119<>\"\",'Ansprechpartner-Meldung'!$E$2,\"\")","v":""},null,""]
[{"$f":"IF(D120<>\"\",'Ansprechpartner-Meldung'!$E$2,\"\")","v":""},null,""]
[{"$f":"IF(D121<>\"\",'Ansprechpartner-Meldung'!$E$2,\"\")","v":""},null,""]
[{"$f":"IF(D122<>\"\",'Ansprechpartner-Meldung'!$E$2,\"\")","v":""},null,""]
[{"$f":"IF(D123<>\"\",'Ansprechpartner-Meldung'!$E$2,\"\")","v":""},null,""]
[{"$f":"IF(D124<>\"\",'Ansprechpartner-Meldung'!$E$2,\"\")","v":""},null,""]
[{"$f":"IF(D125<>\"\",'Ansprechpartner-Meldung'!$E$2,\"\")","v":""},null,""]
[{"$f":"IF(D126<>\"\",'Ansprechpartner-Meldung'!$E$2,\"\")","v":""},null,""]
[{"$f":"IF(D127<>\"\",'Ansprechpartner-Meldung'!$E$2,\"\")","v":""},null,""]
[{"$f":"IF(D128<>\"\",'Ansprechpartner-Meldung'!$E$2,\"\")","v":""},null,""]
[{"$f":"IF(D129<>\"\",'Ansprechpartner-Meldung'!$E$2,\"\")","v":""},null,""]
[{"$f":"IF(D130<>\"\",'Ansprechpartner-Meldung'!$E$2,\"\")","v":""},null,""]
[{"$f":"IF(D131<>\"\",'Ansprechpartner-Meldung'!$E$2,\"\")","v":""},null,{"$f":"IF(A131<>\"\",\"Open\",\"\")","v":""}]
[{"$f":"IF(D132<>\"\",'Ansprechpartner-Meldung'!$E$2,\"\")","v":""},null,""]
[{"$f":"IF(D133<>\"\",'Ansprechpartner-Meldung'!$E$2,\"\")","v":""},null,""]
[{"$f":"IF(D134<>\"\",'Ansprechpartner-Meldung'!$E$2,\"\")","v":""},null,""]
[{"$f":"IF(D135<>\"\",'Ansprechpartner-Meldung'!$E$2,\"\")","v":""},null,""]
[{"$f":"IF(D136<>\"\",'Ansprechpartner-Meldung'!$E$2,\"\")","v":""},null,""]
[{"$f":"IF(D137<>\"\",'Ansprechpartner-Meldung'!$E$2,\"\")","v":""},null,""]
[{"$f":"IF(D138<>\"\",'Ansprechpartner-Meldung'!$E$2,\"\")","v":""},null,""]
[{"$f":"IF(D139<>\"\",'Ansprechpartner-Meldung'!$E$2,\"\")","v":""},null,""]
[{"$f":"IF(D140<>\"\",'Ansprechpartner-Meldung'!$E$2,\"\")","v":""},null,""]
[{"$f":"IF(D141<>\"\",'Ansprechpartner-Meldung'!$E$2,\"\")","v":""},null,""]
[{"$f":"IF(D142<>\"\",'Ansprechpartner-Meldung'!$E$2,\"\")","v":""},null,""]
[{"$f":"IF(D143<>\"\",'Ansprechpartner-Meldung'!$E$2,\"\")","v":""},null,""]
[{"$f":"IF(D144<>\"\",'Ansprechpartner-Meldung'!$E$2,\"\")","v":""},null,""]
[{"$f":"IF(D145<>\"\",'Ansprechpartner-Meldung'!$E$2,\"\")","v":""},null,""]
[{"$f":"IF(D146<>\"\",'Ansprechpartner-Meldung'!$E$2,\"\")","v":""},null,""]
[{"$f":"IF(D147<>\"\",'Ansprechpartner-Meldung'!$E$2,\"\")","v":""},null,""]
[{"$f":"IF(D148<>\"\",'Ansprechpartner-Meldung'!$E$2,\"\")","v":""},null,""]
[{"$f":"IF(D149<>\"\",'Ansprechpartner-Meldung'!$E$2,\"\")","v":""},null,""]
[{"$f":"IF(D150<>\"\",'Ansprechpartner-Meldung'!$E$2,\"\")","v":""},null,""]

{"sheet":"KR-Meldung","index":5,"n_rows":19,"n_cols":12,"rows_kept":19,"cut":false,"hidden":false,"merged":[]}
["Intern","Bezirk","Vorname","Name","email","KR-Stufe","27.06.2023 Mannschaft","18.06.2023 Einzel","Verpflegung","Übernachtung Fr/Sa","Übernachtung Sa/So","Abendessen Samstag"]
[null,{"$f":"IF(C2<>\"\",'Ansprechpartner-Meldung'!$E$2,\"\")","v":"ES"},"Tom","Kater","tom@tomkater.de","D1","Ja","Ja","Fleisch","Ja","Ja","Ja"]
[null,{"$f":"IF(C3<>\"\",'Ansprechpartner-Meldung'!$E$2,\"\")","v":""}]
[null,{"$f":"IF(C4<>\"\",'Ansprechpartner-Meldung'!$E$2,\"\")","v":""}]
[null,{"$f":"IF(C5<>\"\",'Ansprechpartner-Meldung'!$E$2,\"\")","v":""}]
[null,{"$f":"IF(C6<>\"\",'Ansprechpartner-Meldung'!$E$2,\"\")","v":""}]
[null,{"$f":"IF(C7<>\"\",'Ansprechpartner-Meldung'!$E$2,\"\")","v":""}]
[null,{"$f":"IF(C8<>\"\",'Ansprechpartner-Meldung'!$E$2,\"\")","v":""}]
[null,{"$f":"IF(C9<>\"\",'Ansprechpartner-Meldung'!$E$2,\"\")","v":""}]
[null,{"$f":"IF(C10<>\"\",'Ansprechpartner-Meldung'!$E$2,\"\")","v":""}]
[null,{"$f":"IF(C11<>\"\",'Ansprechpartner-Meldung'!$E$2,\"\")","v":""}]
[null,{"$f":"IF(C12<>\"\",'Ansprechpartner-Meldung'!$E$2,\"\")","v":""}]
[null,{"$f":"IF(C13<>\"\",'Ansprechpartner-Meldung'!$E$2,\"\")","v":""}]
[null,{"$f":"IF(C14<>\"\",'Ansprechpartner-Meldung'!$E$2,\"\")","v":""}]
[null,{"$f":"IF(C15<>\"\",'Ansprechpartner-Meldung'!$E$2,\"\")","v":""}]
[null,{"$f":"IF(C16<>\"\",'Ansprechpartner-Meldung'!$E$2,\"\")","v":""}]
[null,{"$f":"IF(C17<>\"\",'Ansprechpartner-Meldung'!$E$2,\"\")","v":""}]
[null,{"$f":"IF(C18<>\"\",'Ansprechpartner-Meldung'!$E$2,\"\")","v":""}]
[null,{"$f":"IF(C19<>\"\",'Ansprechpartner-Meldung'!$E$2,\"\")","v":""}]

{"sheet":"Listen","index":6,"n_rows":23,"n_cols":8,"rows_kept":23,"cut":false,"hidden":true,"merged":[]}
["Bezirk","BZ Kürzel","Altersklasse","Wettkampf","Geschlecht","Essen","Stufe","Teilnahme "]
["Bodenseekreis","BOD","AK 10","E","M","Fleisch","F1","Ja"]
["Calw","CW","AK 12","M","W","Vegetarisch","E1","Nein"]
["Donau","DO","AK 13/14",null,null,"keine Verpflegung","D1"]
["Esslingen","ES","AK 15/16"]
["Federsee","FE","AK 17/18"]
["Fils","FI","AK Offen"]
["Freudenstadt","FDS"]
["Glems-Schönbuch","GS"]
["Heidenheim-Brenz","HDH"]
["Heilbronn","HN"]
["Hohenlohekreis","HL"]
["Ludwigsburg","LB"]
["Neckar-Donau","ND"]
["Ostalb","OA"]
["Ravensburg","RA"]
["Rems-Murr","RM"]
["Reutlingen","RT"]
["Schwäbisch-Hall","SHA"]
["Stuttgart","S"]
["Tauber","TA"]
["Tübingen","TÜ"]
["Zollernalb","ZO"]

{"sheet":"Historie","index":7,"n_rows":14,"n_cols":4,"rows_kept":14,"cut":false,"hidden":true,"merged":[]}
["Jahr","Version","Datum","Kommentar"]
[2006,1,"2006-05-03","Basisversion: alle Meldeformulare zusammengefaßt"]
[null,2,"2006-06-07","Korrektur: Eingabefelder Ordnermeldung entsperrt"]
[null,3,"2006-08-09","Korrektur: Formel Ordnerzahl nur auf Basis der Schwimmerzahlen, ohne Betreuer, Delegationsleiter"]
[2007,1,"2007-05-09","Basisversion"]
[2008,1,"2008-01-02","Basisversion"]
[2011,1,"2011-05-03","Basisversion Einzel AK17/18 Kontrolle Anzahl Disziplinen"]
[2012,1,"2012-06-20","Basisversion"]
[2012,1,"2012-07-11","Korrektur Drop down Einzelmeldung Start Mannschaft ja/nein"]
[2012,1,"2013-06-01","Basisversion"]
[2014,"0.1","2014-05-17","Basisversion"]
[2014,"1.0","2014-05-28","Version zur Veröffentlichung"]
[2015,"1.0","2015-04-27","Version zur Veröffentlichung"]
[2015,"1.1","2015-05-11","Änderung LV-Kürzel"]